fUST/lending_fUST_20250224
["ID","MTS","AMOUNT","RATE_DAILY","PERIOD"]
[354312624,1740407437187,-500.0,0.00013778,2]
[354312625,1740407437198,-500.0,0.00013778,2]
[354312626,1740407437208,-500.0,0.00013778,2]
[354312627,1740407437217,-500.0,0.00013778,2]
[354312628,1740407437227,-500.0,0.00013778,2]
[354312629,1740407437237,-500.0,0.00013778,2]
[354312630,1740407437246,-500.0,0.00013778,2]
[354312631,1740407437256,-500.0,0.00013778,2]
[354312632,1740407437270,-500.0,0.00013778,2]
[354312633,1740407437280,-500.0,0.00013778,2]
[354312634,1740407437290,-500.0,0.00013778,2]
[354312635,1740407437300,-500.0,0.00013778,2]
[354312636,1740407437311,-500.0,0.00013778,2]
[354312638,1740407437320,-500.0,0.00013778,2]
[354312639,1740407437331,-500.0,0.00013778,2]
[354312640,1740407437341,-500.0,0.00013778,2]
[354312641,1740407437351,-1277.96,0.00013778,2]
[354312642,1740407437362,-1277.96,0.00013778,2]
[354312643,1740407437371,-432.07468285,0.00013778,2]
[354312644,1740407437380,-1277.96,0.00013779,2]
[354312645,1740407437390,-1277.96,0.00013779,2]
[354312646,1740407437400,-1277.96,0.00013779,2]
[354312647,1740407437410,-1277.96,0.00013779,2]
[354312648,1740407437419,-1042.25713678,0.00013779,2]
[354312659,1740407437862,-235.70286322,0.00013779,2]
[354312661,1740407437871,-1277.96,0.00013779,2]
[354312663,1740407437880,-1277.96,0.00013779,2]
[354312665,1740407437889,-1278.19,0.00013779,2]
[354312667,1740407437898,-500.0,0.0001378,2]
[354312669,1740407437908,-500.0,0.0001378,2]
[354312670,1740407437917,-501.82626574,0.0001378,2]
[354312673,1740407437927,-500.0,0.0001378,2]
[354312674,1740407437937,-500.0,0.0001378,2]
[354312677,1740407437947,-459.84736208,0.0001378,2]
[354312679,1740407437957,-500.0,0.0001378,2]
[354312681,1740407437967,-500.0,0.0001378,2]
[354312683,1740407437977,-500.0,0.0001378,2]
[354312685,1740407437986,-500.0,0.0001378,2]
[354312687,1740407437996,-565.14,0.0001378,2]
[354312689,1740407438006,-500.0,0.0001378,2]
[354312691,1740407438018,-500.0,0.0001378,2]
[354312693,1740407438027,-500.0,0.0001378,2]
[354312695,1740407438037,-324.54125621,0.0001378,2]
[354312697,1740407438047,-500.0,0.0001378,2]
[354312699,1740407438057,-295.58224746,0.0001378,2]
[354312701,1740407438066,-500.0,0.0001378,2]
[354312703,1740407438076,-500.0,0.0001378,2]
[354312705,1740407438086,-500.0,0.0001378,2]
[354312707,1740407438095,-511.02669937,0.0001378,2]
[354312709,1740407438105,-500.0,0.0001378,2]
[354312710,1740407438114,-500.0,0.0001378,2]
[354312713,1740407438124,-500.0,0.0001378,2]
[354312714,1740407438133,-500.0,0.0001378,2]
[354312716,1740407438142,-500.0,0.0001378,2]
[354312718,1740407438151,-500.0,0.0001378,2]
[354312720,1740407438161,-634.75815014,0.0001378,2]
[354312722,1740407438170,-500.0,0.0001378,2]
[354312724,1740407438179,-500.0,0.0001378,2]
[354312726,1740407438188,-571.34321302,0.0001378,2]
[354312728,1740407438198,-500.0,0.0001378,2]
[354312730,1740407438207,-500.0,0.0001378,2]
[354312732,1740407438216,-592.13419471,0.0001378,2]
[354312734,1740407438226,-500.0,0.0001378,2]
[354312736,1740407438235,-500.0,0.0001378,2]
[354312738,1740407438244,-500.0,0.0001378,2]
[354312740,1740407438253,-500.0,0.0001378,2]
[354312742,1740407438264,-500.0,0.0001378,2]
[354312744,1740407438274,-500.0,0.0001378,2]
[354312746,1740407438283,-500.0,0.0001378,2]
[354312748,1740407438292,-500.0,0.0001378,2]
[354312750,1740407438302,-500.55644541,0.0001378,2]
[354312752,1740407438312,-500.0,0.0001378,2]
[354312754,1740407438321,-500.0,0.0001378,2]
[354312756,1740407438330,-500.0,0.0001378,2]
[354312758,1740407438340,-500.0,0.0001378,2]
[354312760,1740407438349,-571.54,0.0001378,2]
[354312762,1740407438358,-500.0,0.0001378,2]
[354312764,1740407438368,-500.0,0.0001378,2]
[354312766,1740407438377,-500.0,0.0001378,2]
[354312769,1740407438386,-500.0,0.0001378,2]
[354312770,1740407438396,-631.22,0.0001378,2]
[354312773,1740407438405,-500.0,0.0001378,2]
[354312775,1740407438415,-500.0,0.0001378,2]
[354312777,1740407438425,-640.65,0.0001378,2]
[354312779,1740407438434,-500.0,0.0001378,2]
[354312781,1740407438443,-500.0,0.0001378,2]
[354312783,1740407438452,-500.0,0.0001378,2]
[354312798,1740407438582,-500.0,0.0001378,2]
[354312800,1740407438592,-500.0,0.0001378,2]
[354312802,1740407438601,-500.0,0.0001378,2]
[354312804,1740407438610,-297.25815405,0.0001378,2]
[354312806,1740407438619,-500.0,0.0001378,2]
[354312808,1740407438629,-500.0,0.0001378,2]
[354312810,1740407438638,-500.0,0.0001378,2]
[354312812,1740407438648,-500.0,0.0001378,2]
[354312814,1740407438657,-500.0,0.0001378,2]
[354312816,1740407438666,-500.0,0.0001378,2]
[354312818,1740407438676,-332.35525799,0.0001378,2]
[354312820,1740407438685,-500.0,0.0001378,2]
[354312822,1740407438694,-500.0,0.0001378,2]
[354312824,1740407438703,-500.0,0.0001378,2]
[354312826,1740407438712,-500.0,0.0001378,2]
[354312828,1740407438722,-500.0,0.0001378,2]
[354312830,1740407438731,-500.0,0.0001378,2]
[354312832,1740407438741,-500.0,0.0001378,2]
[354312834,1740407438752,-500.0,0.0001378,2]
[354312836,1740407438762,-500.0,0.0001378,2]
[354312839,1740407438771,-500.0,0.0001378,2]
[354312841,1740407438781,-500.0,0.0001378,2]
[354312843,1740407438790,-500.0,0.0001378,2]
[354312845,1740407438799,-500.0,0.0001378,2]
[354312847,1740407438808,-698.76,0.0001378,2]
[354312849,1740407438818,-500.0,0.0001378,2]
[354312851,1740407438829,-500.0,0.0001378,2]
[354312853,1740407438839,-500.0,0.0001378,2]
[354312855,1740407438849,-500.0,0.0001378,2]
[354312857,1740407438858,-500.0,0.0001378,2]
[354312859,1740407438867,-500.0,0.0001378,2]
[354312861,1740407438877,-500.0,0.0001378,2]
[354312863,1740407438886,-500.0,0.0001378,2]
[354312865,1740407438895,-501.7480152,0.0001378,2]
[354312867,1740407438904,-500.0,0.0001378,2]
[354312869,1740407438914,-500.0,0.0001378,2]
[354312871,1740407438924,-500.0,0.0001378,2]
[354312872,1740407438933,-528.73,0.0001378,2]
[354312874,1740407438942,-500.0,0.0001378,2]
[354312877,1740407438951,-500.0,0.0001378,2]
[354312879,1740407438961,-500.0,0.0001378,2]
[354312881,1740407438970,-500.0,0.0001378,2]
[354312882,1740407438980,-500.0,0.0001378,2]
[354312885,1740407438990,-500.0,0.0001378,2]
[354312887,1740407439000,-500.0,0.0001378,2]
[354312889,1740407439009,-500.0,0.0001378,2]
[354312891,1740407439019,-500.0,0.0001378,2]
[354312893,1740407439028,-500.0,0.0001378,2]
[354312895,1740407439037,-500.0,0.0001378,2]
[354312897,1740407439046,-500.0,0.0001378,2]
[354312899,1740407439056,-500.0,0.0001378,2]
[354312901,1740407439065,-500.0,0.0001378,2]
[354312903,1740407439074,-500.0,0.0001378,2]
[354312904,1740407439084,-9030.54,0.0001378,2]
[354312907,1740407439093,-500.0,0.0001378,2]
[354312909,1740407439103,-500.0,0.0001378,2]
[354312910,1740407439113,-500.0,0.0001378,2]
[354312913,1740407439123,-500.0,0.0001378,2]
[354312915,1740407439132,-500.0,0.0001378,2]
[354312916,1740407439142,-581.51,0.0001378,2]
[354312919,1740407439152,-500.0,0.0001378,2]
[354312921,1740407439162,-500.0,0.0001378,2]
[354312923,1740407439172,-500.0,0.0001378,2]
[354312925,1740407439183,-500.0,0.0001378,2]
[354312927,1740407439193,-800.37,0.0001378,2]
[354312929,1740407439202,-500.0,0.0001378,2]
[354312931,1740407439212,-500.0,0.0001378,2]
[354312933,1740407439222,-500.0,0.0001378,2]
[354312935,1740407439231,-502.08638159,0.0001378,2]
[354312937,1740407439241,-635.78,0.0001378,2]
[354312938,1740407439251,-501.64097503,0.0001378,2]
[354312939,1740407439261,-500.0,0.0001378,2]
[354312940,1740407439270,-5364.32,0.0001378,2]
[354312941,1740407439280,-380.42351128,0.0001378,2]
[354312942,1740407439289,-23407.99,0.0001378,2]
[354312943,1740407439299,-1765.88,0.0001378,2]
[354312944,1740407439308,-500.0,0.0001378,2]
[354312945,1740407439318,-2182.38,0.0001378,2]
[354312946,1740407439327,-950.35,0.0001378,2]
[354312947,1740407439336,-765.06,0.0001378,2]
[354312949,1740407439346,-500.0,0.0001378,2]
[354312950,1740407439355,-500.0,0.0001378,2]
[354312951,1740407439364,-500.0,0.0001378,2]
[354312952,1740407439374,-500.0,0.0001378,2]
[354312954,1740407439383,-500.0,0.0001378,2]
[354312956,1740407439392,-649.42,0.0001378,2]
[354312958,1740407439401,-764.4,0.0001378,2]
[354312960,1740407439411,-542.5,0.0001378,2]
[354312962,1740407439420,-500.0,0.0001378,2]
[354312964,1740407439429,-593.58,0.0001378,2]
[354312966,1740407439439,-646.03086131,0.0001378,2]
[354312968,1740407439448,-973.5,0.0001378,2]
[354312970,1740407439457,-1718.9,0.0001378,2]
[354312972,1740407439466,-3327.74,0.0001378,2]
[354312974,1740407439475,-500.0,0.0001378,2]
[354312976,1740407439484,-500.0,0.0001378,2]
[354312978,1740407439493,-8959.83,0.0001378,2]
[354312980,1740407439502,-500.0,0.0001378,2]
[354312982,1740407439511,-500.0,0.0001378,2]
[354312984,1740407439526,-500.0,0.0001378,2]
[354312986,1740407439535,-696.92,0.0001378,2]
[354312988,1740407439544,-500.0,0.0001378,2]
[354312990,1740407439557,-2176.14,0.0001378,2]
[354312992,1740407439566,-500.0,0.0001378,2]
[354312995,1740407439575,-500.0,0.0001378,2]
[354312998,1740407439585,-1029.28,0.0001378,2]
[354313000,1740407439594,-500.0,0.0001378,2]
[354313002,1740407439604,-558.96,0.0001378,2]
[354313004,1740407439613,-872.09,0.0001378,2]
[354313006,1740407439622,-500.0,0.0001378,2]
[354313008,1740407439631,-1989.7,0.0001378,2]
[354313010,1740407439640,-224.77597572,0.0001378,2]
[354313012,1740407439649,-500.0,0.0001378,2]
[354313014,1740407439658,-577.25,0.0001378,2]
[354313016,1740407439667,-600.61,0.0001378,2]
[354313018,1740407439677,-500.0,0.0001378,2]
[354313020,1740407439686,-951.18,0.0001378,2]
[354313022,1740407439695,-500.0,0.0001378,2]
[354313024,1740407439703,-500.0,0.0001378,2]
[354313026,1740407439713,-500.0,0.0001378,2]
[354313028,1740407439722,-500.0,0.0001378,2]
[354313030,1740407439731,-500.0,0.0001378,2]
[354313032,1740407439741,-500.0,0.0001378,2]
[354313034,1740407439752,-500.0,0.0001378,2]
[354313036,1740407439761,-500.0,0.0001378,2]
[354313038,1740407439770,-281.51500694,0.0001378,2]
[354313040,1740407439779,-500.0,0.0001378,2]
[354313042,1740407439787,-500.0,0.0001378,2]
[354313044,1740407439797,-758.6,0.0001378,2]
[354313046,1740407439806,-500.0,0.0001378,2]
[354313048,1740407439815,-503.67374723,0.0001378,2]
[354313050,1740407439825,-500.0,0.0001378,2]
[354313052,1740407439835,-500.0,0.0001378,2]
[354313054,1740407439844,-726.13,0.0001378,2]
[354313056,1740407439853,-1106.65,0.0001378,2]
[354313058,1740407439863,-500.0,0.0001378,2]
[354313060,1740407439872,-500.0,0.0001378,2]
[354313062,1740407439881,-2092.14,0.0001378,2]
[354313065,1740407439893,-500.0,0.0001378,2]
[354313067,1740407439906,-763.85,0.0001378,2]
[354313069,1740407439919,-500.0,0.0001378,2]
[354313072,1740407439931,-500.0,0.0001378,2]
[354313074,1740407439942,-500.0,0.0001378,2]
[354313076,1740407439953,-1214.52,0.0001378,2]
[354313078,1740407439963,-2483.14,0.0001378,2]
[354313080,1740407439975,-500.0,0.0001378,2]
[354313083,1740407439987,-501.65443903,0.0001378,2]
[354313085,1740407439999,-500.0,0.0001378,2]
[354313087,1740407440010,-500.0,0.0001378,2]
[354313090,1740407440023,-151.0,0.000138,2]
[354313092,1740407440035,-151.0,0.000138,2]
[354313094,1740407440047,-151.0,0.000138,2]
[354313096,1740407440059,-151.0,0.000138,2]
[354313099,1740407440071,-187.075,0.000138,2]
[354313101,1740407440083,-3949.3727595,0.000138,2]
[354313103,1740407440094,-155.74873275,0.000138,2]
[354313105,1740407440105,-155.74873275,0.000138,2]
[354313108,1740407440117,-155.74873275,0.000138,2]
[354313110,1740407440128,-155.74873275,0.000138,2]
[354313112,1740407440140,-155.74873275,0.000138,2]
[354313114,1740407440153,-155.74873275,0.000138,2]
[354313117,1740407440165,-155.74873275,0.000138,2]
[354313119,1740407440176,-155.74873275,0.000138,2]
[354313121,1740407440188,-155.74873275,0.000138,2]
[354313123,1740407440198,-155.74,0.000138,2]
[354313125,1740407440209,-171.56648957,0.000138,2]
[354313128,1740407440220,-171.56648957,0.000138,2]
[354313130,1740407440231,-171.56648957,0.000138,2]
[354313132,1740407440243,-171.56,0.000138,2]
[354313134,1740407440255,-191.62758092,0.000138,2]
[354313136,1740407440267,-191.62,0.000138,2]
[354313139,1740407440280,-396.0,0.00013828,2]
[354313141,1740407440291,-420.0,0.00013855,2]
[354313143,1740407440303,-500.0,0.00013863,2]
[354313146,1740407440315,-500.0,0.00013863,2]
[354313148,1740407440327,-352.66385049,0.00013863,2]
[354313150,1740407440340,-500.0,0.00013863,2]
[354313153,1740407440352,-565.14,0.00013863,2]
[354313155,1740407440362,-500.0,0.00013863,2]
[354313157,1740407440372,-199.8596695,0.00013863,2]
[354313159,1740407440382,-500.0,0.00013863,2]
[354313161,1740407440393,-500.0,0.00013863,2]
[354313164,1740407440404,-500.0,0.00013863,2]
[354313166,1740407440416,-500.0,0.00013863,2]
[354313168,1740407440429,-527.0261349,0.00013863,2]
[354313171,1740407440442,-500.0,0.00013863,2]
[354313173,1740407440453,-500.0,0.00013863,2]
[354313175,1740407440463,-500.0,0.00013863,2]
[354313177,1740407440474,-500.0,0.00013863,2]
[354313179,1740407440485,-503.44016034,0.00013863,2]
[354313182,1740407440497,-571.54,0.00013863,2]
[354313184,1740407440508,-151.11523869,0.00013863,2]
[354313186,1740407440518,-500.0,0.00013863,2]
[354313188,1740407440529,-631.22,0.00013863,2]
[354313190,1740407440539,-500.0,0.00013863,2]
[354313192,1740407440549,-500.0,0.00013863,2]
[354313195,1740407440559,-640.65,0.00013863,2]
[354313197,1740407440570,-500.0,0.00013863,2]
[354313199,1740407440580,-506.0839322,0.00013863,2]
[354313201,1740407440591,-500.0,0.00013863,2]
[354313203,1740407440602,-500.0,0.00013863,2]
[354313205,1740407440612,-500.0,0.00013863,2]
[354313207,1740407440623,-500.0,0.00013863,2]
[354313210,1740407440633,-504.74281639,0.00013863,2]
[354313212,1740407440644,-548.71731107,0.00013863,2]
[354313214,1740407440656,-500.0,0.00013863,2]
[354313216,1740407440667,-500.0,0.00013863,2]
[354313218,1740407440679,-500.0,0.00013863,2]
[354313220,1740407440690,-500.0,0.00013863,2]
[354313223,1740407440701,-500.0,0.00013863,2]
[354313225,1740407440712,-500.0,0.00013863,2]
[354313227,1740407440723,-698.76,0.00013863,2]
[354313229,1740407440735,-500.0,0.00013863,2]
[354313231,1740407440751,-201.45,0.00013863,2]
[354313234,1740407440762,-500.0,0.00013863,2]
[354313236,1740407440773,-500.0,0.00013863,2]
[354313238,1740407440785,-500.0,0.00013863,2]
[354313240,1740407440796,-500.0,0.00013863,2]
[354313242,1740407440808,-500.0,0.00013863,2]
[354313244,1740407440819,-528.73,0.00013863,2]
[354313246,1740407440830,-500.0,0.00013863,2]
[354313248,1740407440841,-500.0,0.00013863,2]
[354313251,1740407440852,-500.0,0.00013863,2]
[354313253,1740407440865,-500.0,0.00013863,2]
[354313255,1740407440876,-500.0,0.00013863,2]
[354313257,1740407440887,-500.0,0.00013863,2]
[354313259,1740407440899,-500.0,0.00013863,2]
[354313262,1740407440911,-9030.54,0.00013863,2]
[354313264,1740407440922,-500.0,0.00013863,2]
[354313266,1740407440933,-614.45,0.00013863,2]
[354313268,1740407440945,-500.0,0.00013863,2]
[354313270,1740407440956,-314.85,0.00013863,2]
[354313273,1740407440967,-523.91915251,0.00013863,2]
[354313275,1740407440978,-581.51,0.00013863,2]
[354313277,1740407440989,-500.0,0.00013863,2]
[354313279,1740407441000,-500.0,0.00013863,2]
[354313281,1740407441012,-800.37,0.00013863,2]
[354313283,1740407441023,-500.0,0.00013863,2]
[354313285,1740407441034,-500.0,0.00013863,2]
[354313286,1740407441045,-635.78,0.00013863,2]
[354313289,1740407441056,-500.0,0.00013863,2]
[354313290,1740407441067,-5364.32,0.00013863,2]
[354313293,1740407441078,-23407.99,0.00013863,2]
[354313295,1740407441089,-1765.88,0.00013863,2]
[354313297,1740407441099,-2182.38,0.00013863,2]
[354313299,1740407441112,-950.35,0.00013863,2]
[354313301,1740407441123,-765.06,0.00013863,2]
[354313303,1740407441134,-500.0,0.00013863,2]
[354313305,1740407441144,-649.42,0.00013863,2]
[354313307,1740407441155,-764.4,0.00013863,2]
[354313309,1740407441166,-542.5,0.00013863,2]
[354313311,1740407441176,-500.0,0.00013863,2]
[354313313,1740407441188,-593.58,0.00013863,2]
[354313315,1740407441198,-973.5,0.00013863,2]
[354313317,1740407441209,-1718.9,0.00013863,2]
[354313319,1740407441219,-3327.74,0.00013863,2]
[354313320,1740407441228,-500.0,0.00013863,2]
[354313322,1740407441237,-8959.83,0.00013863,2]
[354313324,1740407441247,-500.0,0.00013863,2]
[354313326,1740407441256,-500.0,0.00013863,2]
[354313328,1740407441265,-696.92,0.00013863,2]
[354313330,1740407441275,-2176.14,0.00013863,2]
[354313332,1740407441284,-1029.28,0.00013863,2]
[354313334,1740407441294,-500.0,0.00013863,2]
[354313336,1740407441302,-558.96,0.00013863,2]
[354313338,1740407441312,-872.09,0.00013863,2]
[354313339,1740407441321,-1989.7,0.00013863,2]
[354313341,1740407441330,-500.0,0.00013863,2]
[354313343,1740407441340,-577.25,0.00013863,2]
[354313345,1740407441350,-600.61,0.00013863,2]
[354313347,1740407441359,-951.18,0.00013863,2]
[354313349,1740407441369,-500.0,0.00013863,2]
[354313351,1740407441378,-500.0,0.00013863,2]
[354313368,1740407441562,-500.0,0.00013863,2]
[354313371,1740407441584,-509.55409756,0.00013863,2]
[354313373,1740407441595,-500.0,0.00013863,2]
[354313375,1740407441605,-500.0,0.00013863,2]
[354313377,1740407441616,-500.0,0.00013863,2]
[354313379,1740407441627,-500.0,0.00013863,2]
[354313381,1740407441637,-758.6,0.00013863,2]
[354313383,1740407441647,-500.0,0.00013863,2]
[354313385,1740407441657,-500.0,0.00013863,2]
[354313387,1740407441666,-500.0,0.00013863,2]
[354313388,1740407441677,-726.13,0.00013863,2]
[354313390,1740407441687,-1106.65,0.00013863,2]
[354313392,1740407441697,-500.0,0.00013863,2]
[354313394,1740407441707,-500.0,0.00013863,2]
[354313396,1740407441716,-2092.14,0.00013863,2]
[354313398,1740407441726,-500.0,0.00013863,2]
[354313400,1740407441736,-763.85,0.00013863,2]
[354313402,1740407441748,-500.0,0.00013863,2]
[354313403,1740407441759,-500.0,0.00013863,2]
[354313405,1740407441768,-1214.52,0.00013863,2]
[354313407,1740407441778,-2483.14,0.00013863,2]
[354313409,1740407441788,-500.0,0.00013863,2]
[354313411,1740407441799,-500.0,0.00013863,2]
[354313413,1740407441809,-500.0,0.00013863,2]
[354313415,1740407441820,-565.6580433,0.00013899,2]
[354313417,1740407441831,-874.83767385,0.000139,5]
[354313419,1740407441847,-331.83602905,0.000139,5]
[354313421,1740407441859,-913.68013903,0.000139,5]
[354313423,1740407441872,-1847.30529547,0.000139,5]
[354313425,1740407441885,-73155.05410472,0.000139,5]
[354313428,1740407441897,-80341.92157255,0.000139,5]
[354313546,1740407442924,-284.99999825,0.00013598,2]
[354313606,1740407443566,-130.56950623,0.00013598,2]
[354313608,1740407443576,-415.56950448,0.00013649,2]
[354313610,1740407443585,-556.3,0.00013698,2]
[354313612,1740407443594,-415.56950448,0.00013699,2]
[354313614,1740407443604,-556.3,0.0001378,2]
[354313616,1740407443613,-556.3,0.00013863,2]
[354313618,1740407443622,-37597.65281868,0.000139,5]
[354313862,1740407445809,-415.56950448,0.0001375,2]
[354313864,1740407445819,-1237.43049552,0.000139,5]
[354315759,1740408173918,246.219909,9.041e-05,2]
[354315763,1740408330124,-854.11588088,0.00012538,2]
[354315764,1740408330146,-854.11588088,0.00012638,2]
[354315765,1740408330167,-300.0,0.00012645,2]
[354315766,1740408330189,-10927.8927425,0.00012646,2]
[354315767,1740408330211,-854.11588088,0.00012738,2]
[354315768,1740408330232,-195.7894721,0.00012763,2]
[354315769,1740408330254,-854.11588088,0.00012838,2]
[354315770,1740408330276,-854.11588088,0.00012938,2]
[354315771,1740408330296,-854.11588088,0.00013038,2]
[354315772,1740408330316,-854.11588088,0.00013138,2]
[354315773,1740408330338,-854.11588088,0.00013238,2]
[354315774,1740408330359,-19601.91606613,0.00013319,2]
[354315775,1740408330380,-854.11588088,0.00013338,2]
[354315776,1740408330401,-10612.55510305,0.00013434,2]
[354315777,1740408330422,-854.11588088,0.00013438,2]
[354315778,1740408330444,-854.11588088,0.00013538,2]
[354315779,1740408330464,-854.11588088,0.00013638,2]
[354315780,1740408330485,-207.78475224,0.0001368,2]
[354315781,1740408330507,-500.0,0.00013698,2]
[354315782,1740408330528,-502.67862467,0.00013698,2]
[354315783,1740408330551,-500.0,0.00013698,2]
[354315784,1740408330573,-255.28781096,0.00013698,2]
[354315785,1740408330594,-500.0,0.00013698,2]
[354315786,1740408330615,-500.0,0.00013698,2]
[354315787,1740408330636,-500.0,0.00013698,2]
[354315788,1740408330657,-500.0,0.00013698,2]
[354315789,1740408330678,-500.0,0.00013698,2]
[354315790,1740408330698,-500.0,0.00013698,2]
[354315791,1740408330718,-500.0,0.00013698,2]
[354315792,1740408330738,-500.0,0.00013698,2]
[354315793,1740408330759,-405.14,0.00013698,2]
[354315794,1740408330780,-500.0,0.00013698,2]
[354315795,1740408330802,-500.0,0.00013698,2]
[354315796,1740408330822,-500.0,0.00013698,2]
[354315797,1740408330842,-500.0,0.00013698,2]
[354315798,1740408330863,-508.82,0.00013698,2]
[354315799,1740408330884,-500.0,0.00013698,2]
[354315800,1740408330904,-501.71481243,0.00013698,5]
[354315801,1740408330925,-500.0,0.00013698,2]
[354315802,1740408330946,-500.0,0.00013698,2]
[354315803,1740408330967,-500.0,0.00013698,2]
[354315804,1740408330988,-500.0,0.00013698,2]
[354315805,1740408331010,-500.0,0.00013698,2]
[354315806,1740408331031,-500.0,0.00013698,2]
[354315807,1740408331056,-500.0,0.00013698,2]
[354315808,1740408331077,-500.0,0.00013698,2]
[354315809,1740408331097,-500.0,0.00013698,2]
[354315810,1740408331118,-500.0,0.00013698,2]
[354315811,1740408331139,-500.0,0.00013698,2]
[354315812,1740408331159,-500.0,0.00013698,2]
[354315813,1740408331181,-519.39,0.00013698,2]
[354315814,1740408331202,-500.0,0.00013698,2]
[354315815,1740408331223,-500.0,0.00013698,2]
[354315816,1740408331248,-500.0,0.00013698,2]
[354315817,1740408331271,-500.0,0.00013698,2]
[354315818,1740408331294,-500.0,0.00013698,2]
[354315819,1740408331315,-500.0,0.00013698,2]
[354315820,1740408331336,-500.0,0.00013698,2]
[354315821,1740408331358,-500.0,0.00013698,2]
[354315822,1740408331381,-5078.3,0.00013698,2]
[354315823,1740408331403,-647.81,0.00013698,2]
[354315824,1740408331426,-8450.92,0.00013698,2]
[354315825,1740408331447,-500.0,0.00013698,2]
[354315826,1740408331467,-500.0,0.00013698,2]
[354315827,1740408331489,-668.37,0.00013698,2]
[354315828,1740408331512,-23096.23,0.00013698,2]
[354315829,1740408331534,-2161.46,0.00013698,2]
[354315830,1740408331557,-856.87,0.00013698,2]
[354315831,1740408331577,-1062.71,0.00013698,2]
[354315832,1740408331599,-500.0,0.00013698,2]
[354315833,1740408331623,-963.46,0.00013698,2]
[354315834,1740408331645,-831.56,0.00013698,2]
[354315835,1740408331667,-500.0,0.00013698,2]
[354315836,1740408331690,-1754.04,0.00013698,2]
[354315837,1740408331711,-500.0,0.00013698,2]
[354315838,1740408331732,-500.0,0.00013698,2]
[354315839,1740408331754,-568.24,0.00013698,2]
[354315840,1740408331774,-502.01208196,0.00013698,2]
[354315841,1740408331796,-3232.2,0.00013698,2]
[354315842,1740408331817,-500.0,0.00013698,2]
[354315843,1740408331838,-500.0,0.00013698,2]
[354315844,1740408331859,-500.0,0.00013698,2]
[354315845,1740408331880,-609.8,0.00013698,2]
[354315846,1740408331901,-500.0,0.00013698,2]
[354315847,1740408331921,-500.0,0.00013698,2]
[354315848,1740408331944,-1924.96,0.00013698,2]
[354315849,1740408331965,-500.1,0.00013698,2]
[354315850,1740408331985,-500.0,0.00013698,2]
[354315851,1740408332007,-900.62,0.00013698,2]
[354315852,1740408332030,-2422.75,0.00013698,2]
[354315853,1740408332054,-763.07,0.00013698,2]
[354315854,1740408332078,-560.56,0.00013698,2]
[354315855,1740408332098,-586.94,0.00013698,2]
[354315856,1740408332120,-500.0,0.00013698,2]
[354315857,1740408332141,-384.54830207,0.00013698,2]
[354315858,1740408332164,-968.32,0.00013698,2]
[354315859,1740408332185,-609.39,0.00013698,2]
[354315860,1740408332207,-500.0,0.00013698,2]